[Event "Karel Janecek Open 2025"]
[Site "Prague"]
[Date "2025.03.02"]
[Round "4.10"]
[White "Filgueiras, Nathan Felipe"]
[Black "Grigoryan, Karen H."]
[Result "1/2-1/2"]
[Annotator "ChessBase"]
[ECO "B76"]
[WhiteElo "2335"]
[BlackElo "2554"]
[PlyCount "143"]
[EventDate "2025.02.21"]
[EventType "swiss"]
[EventCountry "CZE"]
[SourceTitle "playchess.com"]
[Source "ChessBase"]
[SourceQuality "1"]
[TimeControl "40/5400+30:1800+30"]

1. e4 {[%emt 0:07:45]} c5 {[%emt 0:00:09]} 2. Nc3 {[%emt 0:00:17]} g6 {[%emt 0:00:14]} 3. Nf3 {[%emt 0:00:39]} Bg7 {[%emt 0:00:05]} 4. d4 {[%emt 0:00:04]} cxd4 {[%emt 0:00:05]} 5. Nxd4 {[%emt 0:00:04]} Nc6 {[%emt 0:00:05]} 6. Be3 {[%emt 0:03:55]} Nf6 {[%emt 0:00:08]} 7. Nb3 {[%emt 0:01:06]} d6 {[%emt 0:00:47]} 8. f3 {[%emt 0:00:14]} Be6 {[%emt 0:01:02]} 9. Qd2 {[%emt 0:01:20]} O-O {[%emt 0:02:05]} 10. O-O-O {[%emt 0:01:22]} a5 {[%emt 0:03:16]} 11. a4 {[%emt 0:00:08]} Nb4 {[%emt 0:01:21]} 12. Kb1 {[%emt 0:05:44]} Bxb3 {[%emt 0:00:31]} 13. cxb3 {[%emt 0:00:07]} Rc8 {[%emt 0:07:37]} 14. h4 {[%emt 0:05:13]} h5 {[%emt 0:02:17]} 15. Bc4 {[%emt 0:03:41]} Rc6 {[%emt 0:10:36]} 16. e5 {[%emt 0:09:20]} Nd7 {[%emt 0:02:40]} 17. f4 {[%emt 0:04:18]} Qc8 {[%emt 0:09:39]} 18. Nd5 {[%emt 0:06:39]} Nxd5 {[%emt 0:04:24]} 19. Bxd5 {[%emt 0:00:24]} Nb8 {[%emt 0:00:11]} 20. Bxc6 {[%emt 0:05:48]} Nxc6 {[%emt 0:00:56]} 21. exd6 {[%emt 0:01:48]} exd6 {[%emt 0:00:40]} 22. Qxd6 {[%emt 0:25:03]} Nb4 {[%emt 0:00:21]} 23. Rc1 {[%emt 0:02:30]} Qf5+ {[%emt 0:02:39]} 24. Ka1 {[%emt 0:00:05]} Re8 {[%emt 0:08:48]} 25. Bd2 {[%emt 0:02:48]} Re2 {[%emt 0:00:32]} 26. Bc3 {[%emt 0:03:02]} Bxc3 {[%emt 0:04:10]} 27. Rxc3 {[%emt 0:00:16]} Kh7 {[%emt 0:02:29]} 28. Rhc1 {[%emt 0:02:45]} Rxg2 {[%emt 0:00:47]} 29. Rc7 {[%emt 0:02:16]} Rg4 {[%emt 0:04:22]} 30. Qe5 {[%emt 0:02:04]} Qxf4 {[%emt 0:01:13]} 31. Qxf4 {[%emt 0:01:07]} Rxf4 {[%emt 0:00:04]} 32. Rxb7 {[%emt 0:00:09]} Kg7 {[%emt 0:05:47]} 33. Ra7 {[%emt 0:00:36]} Rxh4 {[%emt 0:01:07]} 34. Rf1 {[%emt 0:00:18]} Kh6 {[%emt 0:00:19]} 35. Raxf7 {[%emt 0:00:23]} Rg4 {[%emt 0:03:59]} 36. Kb1 {[%emt 0:00:44]} h4 {[%emt 0:00:27]} 37. Kc1 {[%emt 0:00:47]} Rg2 {[%emt 0:00:14]} 38. Rh1 {[%emt 0:01:13]} g5 {[%emt 0:01:10]} 39. Ra7 {[%emt 0:01:13]} Nd3+ {[%emt 0:03:18]} 40. Kb1 {[%emt 0:00:07]} Nf2 {[%emt 0:03:25]} 41. Rc1 {[%emt 0:15:51]} h3 {[%emt 0:00:12]} 42. Ra6+ {[%emt 0:02:00]} Kh5 {[%emt 0:00:11]} 43. Rxa5 {[%emt 0:00:04]} h2 {[%emt 0:02:41]} 44. Ra8 {[%emt 0:00:15]} Nd3 {[%emt 0:04:51]} 45. Rh8+ {[%emt 0:01:07]} Kg4 {[%emt 0:00:47]} 46. Rc3 {[%emt 0:03:08]} Rg1+ {[%emt 0:04:01]} 47. Ka2 {[%emt 0:00:24]} Nb4+ {[%emt 0:00:08]} 48. Ka3 {[%emt 0:00:20]} Nd5 {[%emt 0:00:06]} 49. Rc4+ {[%emt 0:01:17]} Kf5 {[%emt 0:00:43]} 50. b4 {[%emt 0:01:27]} h1=Q {[%emt 0:00:17]} 51. Rxh1 {[%emt 0:00:03]} Rxh1 {[%emt 0:00:07]} 52. Rc5 {[%emt 0:00:26]} Ke4 {[%emt 0:01:57]} 53. Rc4+ {[%emt 0:01:37]} Kf3 {[%emt 0:00:07]} 54. Rd4 {[%emt 0:01:38]} Ne3 {[%emt 0:00:09]} 55. Rd8 {[%emt 0:01:25]} g4 {[%emt 0:00:07]} 56. Rf8+ {[%emt 0:00:02]} Ke2 {[%emt 0:00:17]} 57. Rg8 {[%emt 0:00:17]} Kf3 {[%emt 0:09:46]} 58. Rf8+ {[%emt 0:05:28]} Ke4 {[%emt 0:00:19]} 59. Rg8 {[%emt 0:00:11]} Kf4 {[%emt 0:07:36]} 60. Rf8+ {[%emt 0:01:54]} Ke5 {[%emt 0:02:27]} 61. Rg8 {[%emt 0:00:40]} Kd5 {[%emt 0:16:29]} 62. b5 {[%emt 0:00:37]} Kc5 {[%emt 0:00:41]} 63. Rc8+ {[%emt 0:00:29]} Kb6 {[%emt 0:00:08]} 64. Rc6+ {[%emt 0:00:18]} Kb7 {[%emt 0:00:04]} 65. Rg6 {[%emt 0:00:20]} Rh5 {[%emt 0:01:13]} 66. Kb4 {[%emt 0:00:50]} Re5 {[%emt 0:01:16]} 67. Rg7+ {[%emt 0:00:16]} Kb8 {[%emt 0:00:06]} 68. b3 {[%emt 0:01:48]} Nd5+ {[%emt 0:00:38]} 69. Ka5 {[%emt 0:00:30]} Re3 {[%emt 0:02:20]} 70. Rg8+ {[%emt 0:01:24]} Kb7 {[%emt 0:00:05]} 71. Rg7+ {[%emt 0:00:05]} Kb8 {[%emt 0:00:09]} 72. Rg8+ {[%emt 0:01:13]} 1/2-1/2

[Event "Karel Janecek Open 2025"]
[Site "Prague"]
[Date "2025.03.02"]
[Round "4.11"]
[White "Gloeckler, Christian"]
[Black "Vetoshko, Volodymyr"]
[Result "1/2-1/2"]
[Annotator "ChessBase"]
[ECO "C70"]
[WhiteElo "2334"]
[BlackElo "2529"]
[PlyCount "75"]
[EventDate "2025.02.21"]
[EventType "swiss"]
[EventCountry "CZE"]
[SourceTitle "playchess.com"]
[Source "ChessBase"]
[SourceQuality "1"]
[TimeControl "40/5400+30:1800+30"]

1. e4 {[%emt 0:00:02]} e5 {[%emt 0:01:51]} 2. Nf3 {[%emt 0:00:07]} Nc6 {[%emt 0:00:03]} 3. Bb5 {[%emt 0:00:06]} a6 {[%emt 0:00:04]} 4. Ba4 {[%emt 0:00:08]} Nge7 {[%emt 0:00:06]} 5. Nc3 {[%emt 0:00:45]} d6 {[%emt 0:00:32]} 6. d4 {[%emt 0:26:01]} b5 {[%emt 0:01:57]} 7. Bb3 {[%emt 0:00:09]} Nxd4 {[%emt 0:01:20]} 8. Nxd4 {[%emt 0:01:05]} exd4 {[%emt 0:00:02]} 9. Qh5 {[%emt 0:01:24]} Ng6 {[%emt 0:05:53]} 10. Bd5 {[%emt 0:05:38]} Ra7 {[%emt 0:09:04]} 11. Ne2 {[%emt 0:01:46]} c5 {[%emt 0:01:00]} 12. O-O {[%emt 0:10:29]} Ne5 {[%emt 0:06:09]} 13. h3 {[%emt 0:08:57]} g6 {[%emt 0:04:34]} 14. Qg5 {[%emt 0:00:08]} Qxg5 {[%emt 0:00:42]} 15. Bxg5 {[%emt 0:00:03]} Bg7 {[%emt 0:01:08]} 16. a4 {[%emt 0:07:04]} b4 {[%emt 0:09:49]} 17. f4 {[%emt 0:02:00]} Nd7 {[%emt 0:08:20]} 18. f5 {[%emt 0:01:50]} gxf5 {[%emt 0:04:04]} 19. Ng3 {[%emt 0:02:59]} Nb6 {[%emt 0:11:38]} 20. Bc6+ {[%emt 0:02:05]} Bd7 {[%emt 0:00:23]} 21. Nxf5 {[%emt 0:00:34]} Be5 {[%emt 0:02:26]} 22. a5 {[%emt 0:00:32]} Bxc6 {[%emt 0:08:45]} 23. axb6 {[%emt 0:00:31]} Rb7 {[%emt 0:01:37]} 24. Bf4 {[%emt 0:08:28]} Kd7 {[%emt 0:00:55]} 25. Bxe5 {[%emt 0:01:59]} dxe5 {[%emt 0:00:01]} 26. Nh6 {[%emt 0:00:26]} Ke6 {[%emt 0:05:11]} 27. Ng4 {[%emt 0:01:00]} Bxe4 {[%emt 0:01:40]} 28. Rf6+ {[%emt 0:00:31]} Ke7 {[%emt 0:05:17]} 29. Raf1 {[%emt 0:01:31]} Bd5 {[%emt 0:00:13]} 30. Nxe5 {[%emt 0:01:03]} Rg8 {[%emt 0:04:20]} 31. g4 {[%emt 0:02:09]} h5 {[%emt 0:00:08]} 32. Kh2 {[%emt 0:08:52]} hxg4 {[%emt 0:00:13]} 33. hxg4 {[%emt 0:00:18]} Rgb8 {[%emt 0:04:18]} 34. R6f5 {[%emt 0:02:14]} Rxb6 {[%emt 0:01:01]} 35. Nxf7 {[%emt 0:00:51]} Bxf7 {[%emt 0:02:32]} 36. Rxf7+ {[%emt 0:00:01]} Kd6 {[%emt 0:00:38]} 37. b3 {[%emt 0:00:42]} Re8 {[%emt 0:00:22]} 38. g5 {[%emt 0:00:58]} 1/2-1/2

[Event "Karel Janecek Open 2025"]
[Site "Prague"]
[Date "2025.03.02"]
[Round "4.12"]
[White "Stevik, Patrik"]
[Black "Popovic, Dusan"]
[Result "0-1"]
[Annotator "ChessBase"]
[ECO "E68"]
[WhiteElo "2331"]
[BlackElo "2494"]
[PlyCount "80"]
[EventDate "2025.02.21"]
[EventType "swiss"]
[EventCountry "CZE"]
[SourceTitle "playchess.com"]
[Source "ChessBase"]
[SourceQuality "1"]
[TimeControl "40/5400+30:1800+30"]

1. Nf3 {[%emt 0:00:09]} d6 {[%emt 0:00:08]} 2. d4 {[%emt 0:00:07]} Nf6 {[%emt 0:00:07]} 3. c4 {[%emt 0:02:02]} g6 {[%emt 0:00:32]} 4. Nc3 {[%emt 0:01:57]} Bg7 {[%emt 0:00:06]} 5. g3 {[%emt 0:00:05]} O-O {[%emt 0:00:08]} 6. Bg2 {[%emt 0:00:03]} Nbd7 {[%emt 0:00:19]} 7. O-O {[%emt 0:00:10]} e5 {[%emt 0:00:14]} 8. e4 {[%emt 0:00:14]} Re8 {[%emt 0:00:35]} 9. Re1 {[%emt 0:00:13]} b6 {[%emt 0:00:55]} 10. b3 {[%emt 0:05:22]} exd4 {[%emt 0:01:44]} 11. Nxd4 {[%emt 0:00:14]} Bb7 {[%emt 0:00:08]} 12. Bb2 {[%emt 0:00:40]} a6 {[%emt 0:04:01]} 13. f3 {[%emt 0:11:57]} c6 {[%emt 0:01:52]} 14. Qc2 {[%emt 0:07:42]} b5 {[%emt 0:08:19]} 15. Rad1 {[%emt 0:04:57]} Qb6 {[%emt 0:03:16]} 16. cxb5 {[%emt 0:06:52]} axb5 {[%emt 0:17:48]} 17. Kh1 {[%emt 0:03:10]} d5 {[%emt 0:02:17]} 18. a4 {[%emt 0:11:25]} b4 {[%emt 0:10:04]} 19. Nb1 {[%emt 0:01:56]} dxe4 {[%emt 0:00:46]} 20. fxe4 {[%emt 0:00:23]} Rad8 {[%emt 0:08:56]} 21. h3 {[%emt 0:09:33]} Nh5 {[%emt 0:06:08]} 22. Kh2 {[%emt 0:03:58]} Nxg3 {[%emt 0:10:00]} 23. Kxg3 {[%emt 0:00:44]} Be5+ {[%emt 0:00:06]} 24. Kf2 {[%emt 0:01:39]} Nf8 {[%emt 0:00:34]} 25. a5 {[%emt 0:05:25]} Qa7 {[%emt 0:00:08]} 26. Qc4 {[%emt 0:01:01]} Qxa5 {[%emt 0:08:52]} 27. Kg1 {[%emt 0:03:53]} c5 {[%emt 0:01:38]} 28. Rf1 {[%emt 0:01:27]} Re7 {[%emt 0:08:54]} 29. Nc6 {[%emt 0:04:09]} Bxc6 {[%emt 0:01:01]} 30. Rxd8 {[%emt 0:00:15]} Bxb2 {[%emt 0:00:06]} 31. Rd6 {[%emt 0:04:19]} Bb7 {[%emt 0:04:22]} 32. Qc2 {[%emt 0:05:17]} Bd4+ {[%emt 0:00:45]} 33. Kh1 {[%emt 0:00:01]} Qc7 {[%emt 0:00:16]} 34. e5 {[%emt 0:00:01]} Rxe5 {[%emt 0:00:20]} 35. Rdf6 {[%emt 0:02:47]} Re3 {[%emt 0:00:08]} 36. R6f3 {[%emt 0:01:20]} Bxf3 {[%emt 0:00:10]} 37. Bxf3 {[%emt 0:00:07]} Qg3 {[%emt 0:00:58]} 38. Bg2 {[%emt 0:00:01]} Be5 {[%emt 0:00:22]} 39. Kg1 {[%emt 0:00:19]} Qh2+ {[%emt 0:00:08]} 40. Kf2 {[%emt 0:00:05]} Bd4 {[%emt 0:00:07]} 0-1

[Event "Karel Janecek Open 2025"]
[Site "Prague"]
[Date "2025.03.02"]
[Round "4.13"]
[White "Ghazarian, Kirk"]
[Black "Kulhanek, Tomas"]
[Result "1-0"]
[Annotator "ChessBase"]
[ECO "E11"]
[WhiteElo "2493"]
[BlackElo "2320"]
[PlyCount "81"]
[EventDate "2025.02.21"]
[EventType "swiss"]
[EventCountry "CZE"]
[SourceTitle "playchess.com"]
[Source "ChessBase"]
[SourceQuality "1"]
[TimeControl "40/5400+30:1800+30"]

1. d4 {[%emt 0:00:31]} Nf6 {[%emt 0:00:06]} 2. c4 {[%emt 0:00:10]} e6 {[%emt 0:00:21]} 3. Nf3 {[%emt 0:00:07]} Bb4+ {[%emt 0:00:09]} 4. Bd2 {[%emt 0:00:05]} a5 {[%emt 0:00:18]} 5. a3 {[%emt 0:00:06]} Bxd2+ {[%emt 0:00:05]} 6. Qxd2 {[%emt 0:00:04]} b6 {[%emt 0:01:05]} 7. Nc3 {[%emt 0:00:08]} Bb7 {[%emt 0:00:03]} 8. e3 {[%emt 0:00:07]} Ne4 {[%emt 0:02:12]} 9. Nxe4 {[%emt 0:00:06]} Bxe4 {[%emt 0:00:03]} 10. Bd3 {[%emt 0:00:06]} Bxd3 {[%emt 0:00:58]} 11. Qxd3 {[%emt 0:00:02]} O-O {[%emt 0:01:10]} 12. h4 {[%emt 0:02:33]} d5 {[%emt 0:05:15]} 13. Rc1 {[%emt 0:10:19]} c6 {[%emt 0:03:38]} 14. Ng5 {[%emt 0:16:41]} g6 {[%emt 0:00:05]} 15. f4 {[%emt 0:00:31]} Qf6 {[%emt 0:09:04]} 16. h5 {[%emt 0:01:40]} h6 {[%emt 0:05:17]} 17. Nf3 {[%emt 0:02:57]} Qf5 {[%emt 0:03:59]} 18. Kd2 {[%emt 0:07:17]} dxc4 {[%emt 0:09:44]} 19. Rxc4 {[%emt 0:01:13]} Qg4 {[%emt 0:04:49]} 20. Rh2 {[%emt 0:03:49]} b5 {[%emt 0:11:36]} 21. Rc1 {[%emt 0:09:18]} g5 {[%emt 0:00:18]} 22. fxg5 {[%emt 0:25:01]} hxg5 {[%emt 0:00:11]} 23. h6 {[%emt 0:00:36]} Qg3 {[%emt 0:07:36]} 24. Qf1 {[%emt 0:04:29]} Nd7 {[%emt 0:16:26]} 25. Rh5 {[%emt 0:01:41]} f6 {[%emt 0:01:25]} 26. Rxc6 {[%emt 0:00:18]} Rac8 {[%emt 0:03:08]} 27. Rh3 {[%emt 0:10:26]} Qg4 {[%emt 0:04:37]} 28. Rxc8 {[%emt 0:00:32]} Rxc8 {[%emt 0:00:08]} 29. Ne1 {[%emt 0:00:36]} a4 {[%emt 0:06:26]} 30. Qxb5 {[%emt 0:02:26]} Nc5 {[%emt 0:02:33]} 31. dxc5 {[%emt 0:01:08]} Rd8+ {[%emt 0:00:01]} 32. Kc3 {[%emt 0:00:27]} Qd1 {[%emt 0:00:08]} 33. Nd3 {[%emt 0:00:15]} g4 {[%emt 0:01:11]} 34. h7+ {[%emt 0:00:52]} Kh8 {[%emt 0:00:03]} 35. Rh6 {[%emt 0:00:15]} e5 {[%emt 0:01:01]} 36. Rxf6 {[%emt 0:00:41]} e4 {[%emt 0:01:46]} 37. Rd6 {[%emt 0:00:04]} Rf8 {[%emt 0:01:11]} 38. Qc4 {[%emt 0:00:34]} exd3 {[%emt 0:00:46]} 39. Qd4+ {[%emt 0:00:05]} Kxh7 {[%emt 0:00:06]} 40. Qxd3+ {[%emt 0:00:17]} Qxd3+ {[%emt 0:00:07]} 41. Kxd3 {[%emt 0:30:39]} 1-0

[Event "Karel Janecek Open 2025"]
[Site "Prague"]
[Date "2025.03.02"]
[Round "4.14"]
[White "Isik, Alparslan"]
[Black "Knudsen, Simon"]
[Result "1-0"]
[Annotator "ChessBase"]
[ECO "A40"]
[WhiteElo "2477"]
[BlackElo "2312"]
[PlyCount "69"]
[EventDate "2025.02.21"]
[EventType "swiss"]
[EventCountry "CZE"]
[SourceTitle "playchess.com"]
[Source "ChessBase"]
[SourceQuality "1"]
[TimeControl "40/5400+30:1800+30"]

1. Nf3 {[%emt 0:06:12]} g6 {[%emt 0:00:24]} 2. c4 {[%emt 0:00:26]} Bg7 {[%emt 0:00:58]} 3. Nc3 {[%emt 0:00:12]} e6 {[%emt 0:00:11]} 4. d4 {[%emt 0:03:17]} Ne7 {[%emt 0:02:05]} 5. h4 {[%emt 0:00:52]} h6 {[%emt 0:00:14]} 6. Bf4 {[%emt 0:01:47]} d6 {[%emt 0:00:28]} 7. e4 {[%emt 0:01:27]} b6 {[%emt 0:02:11]} 8. Bd3 {[%emt 0:04:03]} Bb7 {[%emt 0:07:54]} 9. Qd2 {[%emt 0:04:18]} Nbc6 {[%emt 0:04:42]} 10. d5 {[%emt 0:08:03]} Ne5 {[%emt 0:03:31]} 11. Nxe5 {[%emt 0:00:29]} dxe5 {[%emt 0:00:14]} 12. Be3 {[%emt 0:00:05]} exd5 {[%emt 0:00:33]} 13. cxd5 {[%emt 0:00:05]} c6 {[%emt 0:00:18]} 14. O-O-O {[%emt 0:02:47]} cxd5 {[%emt 0:13:38]} 15. Bb5+ {[%emt 0:04:32]} Kf8 {[%emt 0:00:17]} 16. exd5 {[%emt 0:00:06]} Nf5 {[%emt 0:01:00]} 17. Ne2 {[%emt 0:06:37]} Kg8 {[%emt 0:07:07]} 18. Kb1 {[%emt 0:02:16]} Nd6 {[%emt 0:02:35]} 19. Bc6 {[%emt 0:00:41]} Rc8 {[%emt 0:02:04]} 20. Bxb7 {[%emt 0:06:30]} Nxb7 {[%emt 0:00:07]} 21. h5 {[%emt 0:01:01]} g5 {[%emt 0:00:58]} 22. d6 {[%emt 0:08:12]} Qd7 {[%emt 0:00:08]} 23. g4 {[%emt 0:00:09]} Qxg4 {[%emt 0:08:41]} 24. d7 {[%emt 0:00:44]} Rd8 {[%emt 0:00:35]} 25. Ng3 {[%emt 0:03:50]} Bf8 {[%emt 0:04:26]} 26. Qd5 {[%emt 0:01:33]} Nd6 {[%emt 0:00:12]} 27. Qxe5 {[%emt 0:00:41]} Rxd7 {[%emt 0:01:09]} 28. Rd4 {[%emt 0:17:54]} Qf3 {[%emt 0:03:47]} 29. Rc1 {[%emt 0:02:24]} Rh7 {[%emt 0:06:46]} 30. Ne4 {[%emt 0:03:12]} Nxe4 {[%emt 0:01:23]} 31. Rxd7 {[%emt 0:00:18]} Nxf2 {[%emt 0:00:50]} 32. Bxf2 {[%emt 0:00:35]} Qxf2 {[%emt 0:00:24]} 33. Rd8 {[%emt 0:00:24]} f6 {[%emt 0:01:25]} 34. Rxf8+ {[%emt 0:00:36]} Kxf8 {[%emt 0:00:05]} 35. Rc8+ {[%emt 0:00:03]} 1-0

[Event "Karel Janecek Open 2025"]
[Site "Prague"]
[Date "2025.03.02"]
[Round "4.15"]
[White "Agmanov, Zhandos"]
[Black "Radeva, Viktoria"]
[Result "1-0"]
[Annotator "ChessBase"]
[ECO "C42"]
[WhiteElo "2469"]
[BlackElo "2303"]
[PlyCount "115"]
[EventDate "2025.02.21"]
[EventType "swiss"]
[EventCountry "CZE"]
[SourceTitle "playchess.com"]
[Source "ChessBase"]
[SourceQuality "1"]
[TimeControl "40/5400+30:1800+30"]

1. e4 {[%emt 0:00:05]} e5 {[%emt 0:00:15]} 2. Nf3 {[%emt 0:01:31]} Nf6 {[%emt 0:00:07]} 3. Nxe5 {[%emt 0:00:31]} d6 {[%emt 0:00:13]} 4. Nf3 {[%emt 0:00:05]} Nxe4 {[%emt 0:00:14]} 5. Bd3 {[%emt 0:01:11]} Nf6 {[%emt 0:04:50]} 6. O-O {[%emt 0:00:07]} Be7 {[%emt 0:00:15]} 7. Re1 {[%emt 0:00:05]} O-O {[%emt 0:00:35]} 8. Bf1 {[%emt 0:00:10]} d5 {[%emt 0:02:37]} 9. d4 {[%emt 0:00:11]} Nc6 {[%emt 0:03:43]} 10. Ne5 {[%emt 0:13:43]} Nxe5 {[%emt 0:10:55]} 11. dxe5 {[%emt 0:00:07]} Ne4 {[%emt 0:00:33]} 12. Be3 {[%emt 0:06:09]} Bf5 {[%emt 0:04:24]} 13. Bd3 {[%emt 0:04:33]} Bg6 {[%emt 0:08:09]} 14. Nd2 {[%emt 0:19:47]} Re8 {[%emt 0:10:14]} 15. Nxe4 {[%emt 0:05:58]} dxe4 {[%emt 0:01:22]} 16. Bc4 {[%emt 0:00:24]} Bf8 {[%emt 0:26:30]} 17. Bf4 {[%emt 0:12:25]} c6 {[%emt 0:05:31]} 18. Qe2 {[%emt 0:16:38]} Qb6 {[%emt 0:00:31]} 19. c3 {[%emt 0:01:46]} Rad8 {[%emt 0:01:38]} 20. h4 {[%emt 0:03:18]} h5 {[%emt 0:05:52]} 21. b4 {[%emt 0:00:53]} Be7 {[%emt 0:01:15]} 22. Bg3 {[%emt 0:03:05]} a5 {[%emt 0:00:22]} 23. a3 {[%emt 0:00:14]} Kh7 {[%emt 0:04:41]} 24. Kh2 {[%emt 0:01:01]} Qa7 {[%emt 0:00:24]} 25. f4 {[%emt 0:03:20]} exf3 {[%emt 0:01:18]} 26. Qxf3 {[%emt 0:00:08]} Rf8 {[%emt 0:02:00]} 27. Rad1 {[%emt 0:00:24]} axb4 {[%emt 0:02:21]} 28. axb4 {[%emt 0:00:15]} b5 {[%emt 0:01:10]} 29. Rxd8 {[%emt 0:00:13]} Bxd8 {[%emt 0:00:18]} 30. Bd3 {[%emt 0:00:12]} Bxd3 {[%emt 0:00:09]} 31. Qxd3+ {[%emt 0:00:04]} Kg8 {[%emt 0:01:22]} 32. Qf3 {[%emt 0:02:19]} c5 {[%emt 0:00:38]} 33. Bf2 {[%emt 0:01:07]} Bb6 {[%emt 0:00:12]} 34. Qc6 {[%emt 0:00:25]} Qa2 {[%emt 0:01:11]} 35. Bg3 {[%emt 0:01:00]} Qe6 {[%emt 0:00:49]} 36. Qxb5 {[%emt 0:01:40]} cxb4 {[%emt 0:00:03]} 37. cxb4 {[%emt 0:00:40]} Rd8 {[%emt 0:00:22]} 38. Rc1 {[%emt 0:01:13]} Be3 {[%emt 0:00:53]} 39. Rc6 {[%emt 0:01:18]} Qg4 {[%emt 0:00:24]} 40. Rd6 {[%emt 0:00:44]} Rc8 {[%emt 0:01:22]} 41. Rc6 {[%emt 0:15:29]} Rd8 {[%emt 0:06:18]} 42. Rd6 {[%emt 0:00:15]} Rc8 {[%emt 0:00:08]} 43. Qf1 {[%emt 0:02:39]} Qxb4 {[%emt 0:04:59]} 44. Qf3 {[%emt 0:03:05]} Qc3 {[%emt 0:07:43]} 45. e6 {[%emt 0:06:00]} fxe6 {[%emt 0:00:45]} 46. Rxe6 {[%emt 0:00:08]} Bd2 {[%emt 0:07:11]} 47. Qd5 {[%emt 0:00:05]} Kh8 {[%emt 0:01:26]} 48. Qxh5+ {[%emt 0:00:55]} Kg8 {[%emt 0:00:15]} 49. Qd5 {[%emt 0:02:26]} Kh8 {[%emt 0:00:17]} 50. Be5 {[%emt 0:01:31]} Qc4 {[%emt 0:03:17]} 51. Bxg7+ {[%emt 0:00:43]} Kxg7 {[%emt 0:02:20]} 52. Qe5+ {[%emt 0:00:16]} Kg8 {[%emt 0:00:49]} 53. Rg6+ {[%emt 0:00:52]} Kf8 {[%emt 0:00:05]} 54. Qf5+ {[%emt 0:01:54]} Ke8 {[%emt 0:00:49]} 55. Re6+ {[%emt 0:00:33]} Kd8 {[%emt 0:00:16]} 56. Qf8+ {[%emt 0:00:17]} Kc7 {[%emt 0:00:34]} 57. Qe7+ {[%emt 0:00:15]} Kb8 {[%emt 0:00:23]} 58. Rb6+ {[%emt 0:00:05]} 1-0

[Event "Karel Janecek Open 2025"]
[Site "Prague"]
[Date "2025.03.02"]
[Round "4.16"]
[White "Simek, Petr"]
[Black "Urazayev, Arystanbek"]
[Result "1/2-1/2"]
[Annotator "ChessBase"]
[ECO "E08"]
[WhiteElo "2322"]
[BlackElo "2467"]
[PlyCount "44"]
[EventDate "2025.02.21"]
[EventType "swiss"]
[EventCountry "CZE"]
[SourceTitle "playchess.com"]
[Source "ChessBase"]
[SourceQuality "1"]
[TimeControl "40/5400+30:1800+30"]

1. d4 {[%emt 0:00:02]} Nf6 {[%emt 0:03:19]} 2. c4 {[%emt 0:00:05]} e6 {[%emt 0:00:04]} 3. Nf3 {[%emt 0:00:06]} d5 {[%emt 0:00:05]} 4. g3 {[%emt 0:00:09]} Bb4+ {[%emt 0:00:05]} 5. Bd2 {[%emt 0:00:07]} Be7 {[%emt 0:00:05]} 6. Bg2 {[%emt 0:00:12]} O-O {[%emt 0:00:09]} 7. O-O {[%emt 0:00:06]} Nbd7 {[%emt 0:00:04]} 8. Qc2 {[%emt 0:00:17]} c6 {[%emt 0:00:09]} 9. Bf4 {[%emt 0:00:21]} a5 {[%emt 0:00:17]} 10. Rd1 {[%emt 0:00:20]} h6 {[%emt 0:00:09]} 11. Nc3 {[%emt 0:09:17]} b6 {[%emt 0:03:19]} 12. Ne5 {[%emt 0:05:32]} Nxe5 {[%emt 0:00:13]} 13. dxe5 {[%emt 0:01:40]} Nd7 {[%emt 0:00:08]} 14. cxd5 {[%emt 0:00:54]} cxd5 {[%emt 0:00:02]} 15. Bxh6 {[%emt 0:03:38]} gxh6 {[%emt 0:06:42]} 16. Nxd5 {[%emt 0:00:12]} Ra7 {[%emt 0:28:07]} 17. Qxc8 {[%emt 0:06:54]} exd5 {[%emt 0:00:06]} 18. Qc1 {[%emt 0:10:05]} Qc7 {[%emt 0:14:51]} 19. Qxh6 {[%emt 0:00:58]} Qxe5 {[%emt 0:00:53]} 20. Rxd5 {[%emt 0:04:51]} Qf6 {[%emt 0:05:56]} 21. Qh5 {[%emt 0:22:45]} Rd8 {[%emt 0:04:03]} 22. Rad1 {[%emt 0:18:26]} Nc5 {[%emt 0:00:24]} 1/2-1/2

[Event "Karel Janecek Open 2025"]
[Site "Prague"]
[Date "2025.03.03"]
[Round "5.1"]
[White "Beerdsen, Thomas"]
[Black "Ioannidis, Evgenios"]
[Result "1/2-1/2"]
[Annotator "TA"]
[ECO "C78"]
[WhiteElo "2511"]
[BlackElo "2484"]
[PlyCount "39"]
[EventDate "2025.02.21"]
[EventType "swiss"]
[EventCountry "CZE"]
[SourceTitle "playchess.com"]
[Source "ChessBase"]
[SourceQuality "1"]
[TimeControl "40/5400+30:1800+30"]

{[%evp 18,39,29,8,8,12,21,0,0,-9,-12,2,-3,-10,-8,-11,-4,-10,-6,0,0,0,0,0]} 1. e4 {[%emt 0:05:42]} e5 {[%emt 0:00:15]} 2. Nf3 {[%emt 0:00:14]} Nc6 {[%emt 0:00:08]} 3. Bb5 {[%emt 0:00:19]} a6 {[%emt 0:00:11]} 4. Ba4 {[%emt 0:00:06]} Nf6 {[%emt 0:00:10]} 5. O-O {[%emt 0:00:08]} b5 {[%emt 0:00:13]} 6. Bb3 {[%emt 0:00:05]} Bc5 {[%emt 0:00:07]} 7. Nxe5 {[%emt 0:00:05]} Nxe5 {[%emt 0:00:08]} 8. d4 {[%emt 0:00:05]} Bxd4 {[%emt 0:00:06]} 9. Qxd4 {[%emt 0:00:05]} d6 {[%emt 0:00:08]} 10. f4 {[%emt 0:00:06]} Nc6 {[%emt 0:00:14] The position is equal. 10...c5 is vanishing. C78: Ruy Lopez: Archangelsk and Möller Defences.} 11. Qc3 {[%emt 0:00:11]} Ne7 {[%emt 0:00:49][%cal Oe8g8]} 12. e5 {[%emt 0:15:12]} Ne4 {[%emt 0:00:07]} 13. Qf3 {[%emt 0:11:58] [#]} Bb7 $1 {[%emt 0:00:13]} 14. Nc3 {[%emt 0:01:41]} Nc5 {[%emt 0:00:46] Excellent horsemanship.} 15. Qg4 {[%emt 0:01:45]} Nxb3 {[%emt 0:04:58]} 16. cxb3 $146 {[%emt 0:00:47]} (16. axb3 Qd7 17. Qxd7+ Kxd7 18. exd6 cxd6 19. Ne2 Rhe8 20. Kf2 h5 21. Nd4 Nd5 22. Rd1 {½-½ Georgakopoulos,N (2110)-Skaperdas,K (2060) GRE-chT 51st 2024 (3.4)}) 16... dxe5 {[%emt 0:06:35]} 17. fxe5 {[%emt 0:01:30][%cal Oe5e6]} ({Of course not} 17. Rd1 Qc8 18. Qxc8+ Rxc8 $15) 17... O-O {[%emt 0:00:06]} 18. Bg5 {[%emt 0:04:04] [#] and Bf6 should not be overlooked} Qc8 {[%emt 0:00:13]} 19. e6 {[%emt 0:03:14]} Ng6 {[%emt 0:01:44]} 20. Rxf7 {[%emt 0:00:25] An uneventful encounter.   Weighted Error Value: White=0.06 (flawless) /Black=0.02 (flawless)   OK:         	White=4     	Black=4      Strong:       	---       	Black=1} 1/2-1/2